fUST/lending_fUST_20250901
["ID","MTS","AMOUNT","RATE_DAILY","PERIOD"]
[382816367,1756737054620,-480.0,0.00013972,2]
[382816368,1756737054629,-2853.6,0.00013972,2]
[382816369,1756737054640,-3659.61,0.00013972,2]
[382816370,1756737054650,-480.0,0.00013972,2]
[382816371,1756737054661,-480.0,0.00013972,2]
[382816372,1756737054671,-480.0,0.00013972,2]
[382816373,1756737054681,-841.62,0.00013972,2]
[382816374,1756737054690,-926.52,0.00013972,2]
[382816375,1756737054700,-480.0,0.00013972,2]
[382816376,1756737054709,-850.62,0.00013972,2]
[382816377,1756737054718,-495.38,0.00013972,2]
[382816378,1756737054728,-876.18,0.00013972,2]
[382816379,1756737054737,-480.0,0.00013972,2]
[382816380,1756737054745,-480.0,0.00013972,2]
[382816381,1756737054754,-1045.1,0.00013972,2]
[382816382,1756737054764,-1236.07,0.00013972,2]
[382816383,1756737054773,-1228.27,0.00013972,2]
[382816384,1756737054782,-556.23,0.00013972,2]
[382816385,1756737054791,-480.0,0.00013972,2]
[382816386,1756737054800,-480.0,0.00013972,2]
[382816387,1756737054809,-541.91,0.00013972,2]
[382816388,1756737054819,-480.0,0.00013972,2]
[382816389,1756737054831,-2375.52,0.00013972,2]
[382816390,1756737054840,-2491.73,0.00013972,2]
[382816391,1756737054849,-697.64,0.00013972,2]
[382816392,1756737054860,-480.0,0.00013972,2]
[382816393,1756737054870,-507.44520024,0.00013972,2]
[382816394,1756737054879,-480.0,0.00013972,2]
[382816395,1756737054889,-480.0,0.00013972,2]
[382816396,1756737054899,-480.0,0.00013972,2]
[382816397,1756737054909,-766.33,0.00013972,2]
[382816398,1756737054917,-480.0,0.00013972,2]
[382816399,1756737054927,-480.0,0.00013972,2]
[382816400,1756737054936,-552.75,0.00013972,2]
[382816401,1756737054946,-828.26,0.00013972,2]
[382816402,1756737054955,-1179.07,0.00013972,2]
[382816403,1756737054964,-480.0,0.00013972,2]
[382816404,1756737054973,-2571.03,0.00013972,2]
[382816405,1756737054982,-480.0,0.00013972,2]
[382816406,1756737054991,-480.0,0.00013972,2]
[382816407,1756737055000,-480.0,0.00013972,2]
[382816408,1756737055010,-480.0,0.00013972,2]
[382816409,1756737055019,-482.3068809,0.00013972,2]
[382816410,1756737055029,-480.0,0.00013972,2]
[382816411,1756737055038,-480.0,0.00013972,2]
[382816412,1756737055047,-480.0,0.00013972,2]
[382816413,1756737055056,-480.0,0.00013972,2]
[382816414,1756737055065,-480.0,0.00013972,2]
[382816415,1756737055074,-480.0,0.00013972,2]
[382816416,1756737055083,-480.0,0.00013972,2]
[382816417,1756737055092,-7290.22,0.00013972,2]
[382816418,1756737055101,-480.0,0.00013972,2]
[382816419,1756737055110,-480.0,0.00013972,2]
[382816420,1756737055119,-480.0,0.00013972,2]
[382816421,1756737055128,-556.84,0.00013972,2]
[382816422,1756737055137,-960.63,0.00013972,2]
[382816423,1756737055146,-480.0,0.00013972,2]
[382816424,1756737055155,-1071.3,0.00013972,2]
[382816425,1756737055164,-504.42,0.00013972,2]
[382816426,1756737055174,-480.0,0.00013972,2]
[382816427,1756737055183,-584.34027746,0.00013972,2]
[382816428,1756737055192,-6015.79,0.00013972,2]
[382816429,1756737055201,-369.45458263,0.00013972,2]
[382816430,1756737055210,-480.0,0.00013972,2]
[382816431,1756737055220,-480.0,0.00013972,2]
[382816432,1756737055229,-772.67,0.00013972,2]
[382816433,1756737055238,-917.75,0.00013972,2]
[382816434,1756737055247,-480.0,0.00013972,2]
[382816435,1756737055257,-480.0,0.00013972,2]
[382816436,1756737055266,-1174.1,0.00013972,2]
[382816437,1756737055275,-480.0,0.00013972,2]
[382816438,1756737055285,-480.0,0.00013972,2]
[382816439,1756737055294,-649.18,0.00013972,2]
[382816440,1756737055303,-480.0,0.00013972,2]
[382816441,1756737055312,-683.17,0.00013972,2]
[382816442,1756737055321,-480.0,0.00013972,2]
[382816443,1756737055330,-2094.04,0.00013972,2]
[382816444,1756737055340,-480.0,0.00013972,2]
[382816445,1756737055349,-813.18,0.00013972,2]
[382816446,1756737055358,-480.0,0.00013972,2]
[382816447,1756737055367,-480.0,0.00013972,2]
[382816448,1756737055376,-480.0,0.00013972,2]
[382816449,1756737055386,-1809.97,0.00013972,2]
[382816450,1756737055395,-1346.37,0.00013972,2]
[382816451,1756737055404,-480.0,0.00013972,2]
[382816452,1756737055413,-698.16,0.00013972,2]
[382816453,1756737055422,-480.0,0.00013972,2]
[382816454,1756737055431,-602.04,0.00013972,2]
[382816455,1756737055440,-2196.01,0.00013972,2]
[382816456,1756737055450,-480.0,0.00013972,2]
[382816457,1756737055459,-2537.89,0.00013972,2]
[382816458,1756737055468,-567.50250183,0.00013972,2]
[382816459,1756737055477,-480.0,0.00013972,2]
[382816460,1756737055487,-480.0,0.00013972,2]
[382816461,1756737055496,-805.73,0.00013972,2]
[382816462,1756737055505,-855.3,0.00013972,2]
[382816463,1756737055514,-480.0,0.00013972,2]
[382816464,1756737055523,-480.0,0.00013972,2]
[382816465,1756737055532,-2033.27,0.00013972,2]
[382816466,1756737055542,-480.0,0.00013972,2]
[382816467,1756737055551,-480.0,0.00013972,2]
[382816468,1756737055561,-5304.17,0.00013972,2]
[382816469,1756737055571,-480.0,0.00013972,2]
[382816470,1756737055581,-521.85,0.00013972,2]
[382816471,1756737055590,-480.0,0.00013972,2]
[382816472,1756737055600,-456.81308376,0.00013972,2]
[382816473,1756737055610,-480.0,0.00013972,2]
[382816474,1756737055619,-480.0,0.00013972,2]
[382816475,1756737055629,-480.0,0.00013972,2]
[382816476,1756737055639,-480.0,0.00013972,2]
[382816477,1756737055649,-480.0,0.00013972,2]
[382816478,1756737055658,-480.0,0.00013972,2]
[382816479,1756737055668,-585.79,0.00013972,2]
[382816480,1756737055677,-480.0,0.00013972,2]
[382816481,1756737055687,-721.19,0.00013972,2]
[382816482,1756737055697,-712.31,0.00013972,2]
[382816483,1756737055706,-480.0,0.00013972,2]
[382816484,1756737055716,-981.38,0.00013972,2]
[382816485,1756737055726,-480.0,0.00013972,2]
[382816486,1756737055735,-480.0,0.00013972,2]
[382816487,1756737055745,-480.0,0.00013972,2]
[382816488,1756737055755,-480.0,0.00013972,2]
[382816489,1756737055765,-480.0,0.00013972,2]
[382816490,1756737055773,-500.0,0.00013973,2]
[382816491,1756737055784,-162.32848625,0.00013973,2]
[382816492,1756737055794,-500.0,0.00013973,2]
[382816493,1756737055804,-500.0,0.00013973,2]
[382816494,1756737055814,-500.0,0.00013973,2]
[382816495,1756737055827,-520.39784858,0.00013973,2]
[382816496,1756737055836,-500.0,0.00013973,2]
[382816497,1756737055846,-500.0,0.00013973,2]
[382816498,1756737055855,-500.0,0.00013973,2]
[382816499,1756737055866,-500.0,0.00013973,2]
[382816500,1756737055876,-500.0,0.00013973,2]
[382816501,1756737055885,-500.0,0.00013973,2]
[382816502,1756737055896,-500.0,0.00013973,2]
[382816503,1756737055907,-409.94293439,0.00013973,2]
[382816504,1756737055917,-500.0,0.00013973,2]
[382816505,1756737055927,-500.0,0.00013973,2]
[382816506,1756737055936,-500.0,0.00013973,2]
[382816507,1756737055946,-500.0,0.00013973,2]
[382816508,1756737055955,-500.0,0.00013973,2]
[382816509,1756737055965,-500.0,0.00013973,2]
[382816510,1756737055974,-500.0,0.00013973,2]
[382816511,1756737055983,-500.0,0.00013973,2]
[382816512,1756737056034,-500.0,0.00013973,2]
[382816513,1756737056043,-500.0,0.00013973,2]
[382816514,1756737056052,-500.0,0.00013973,2]
[382816515,1756737056061,-500.0,0.00013973,2]
[382816516,1756737056069,-500.0,0.00013973,2]
[382816517,1756737056078,-500.0,0.00013973,2]
[382816518,1756737056088,-500.0,0.00013973,2]
[382816519,1756737056097,-500.0,0.00013973,2]
[382816520,1756737056106,-500.0,0.00013973,2]
[382816521,1756737056115,-500.0,0.00013973,2]
[382816522,1756737056123,-525.08306546,0.00013973,2]
[382816523,1756737056132,-500.0,0.00013973,2]
[382816524,1756737056142,-3055.49595614,0.00013977,2]
[382816525,1756737056152,-200.29541264,0.00014,2]
[382816526,1756737056161,-975.0,0.00014006,2]
[382816527,1756737056171,-632.0,0.00014006,2]
[382816528,1756737056180,-2153.0,0.00014006,2]
[382816529,1756737056189,-409.0,0.00014006,2]
[382816530,1756737056199,-423.777,0.00014006,2]
[382816531,1756737056209,-250.0,0.00014009,2]
[382816532,1756737056219,-3000.0,0.0001404,2]
[382816533,1756737056228,-168.0,0.00014067,2]
[382816534,1756737056237,-209.0,0.00014068,2]
[382816535,1756737056247,-168.0,0.00014074,2]
[382816536,1756737056256,-168.0,0.00014081,2]
[382816537,1756737056266,-151.0,0.000141,2]
[382816538,1756737056276,-151.0,0.000141,2]
[382816539,1756737056286,-150.0,0.00014143,2]
[382816540,1756737056297,-208.578,0.00014143,2]
[382816541,1756737056307,-250.0,0.00014143,2]
[382816542,1756737056316,-151.108,0.00014143,2]
[382816543,1756737056325,-195.869,0.00014143,2]
[382816544,1756737056335,-150.069,0.00014143,2]
[382816545,1756737056344,-220.87,0.00014143,2]
[382816546,1756737056354,-168.0,0.00014146,2]
[382816547,1756737056363,-168.0,0.00014163,2]
[382816548,1756737056372,-168.0,0.00014189,2]
[382816549,1756737056381,-3316.47653985,0.00014194,2]
[382816550,1756737056391,-151.0,0.000142,2]
[382816551,1756737056401,-151.0,0.000142,2]
[382816552,1756737056410,-151.0,0.000142,2]
[382816553,1756737056420,-151.0,0.000142,2]
[382816554,1756737056429,-168.0,0.00014219,2]
[382816555,1756737056439,-1000.0,0.00014221,2]
[382816556,1756737056448,-500.0,0.00014231,2]
[382816557,1756737056457,-501.40795839,0.00014231,2]
[382816558,1756737056467,-500.0,0.00014231,2]
[382816559,1756737056476,-500.0,0.00014231,2]
[382816560,1756737056485,-390.26996667,0.00014231,2]
[382816561,1756737056494,-500.0,0.00014231,2]
[382816562,1756737056504,-500.0,0.00014231,2]
[382816563,1756737056513,-500.0,0.00014231,2]
[382816564,1756737056525,-151.0,0.00014238,2]
[382816565,1756737056534,-173.62726951,0.00014238,2]
[382816566,1756737056543,-151.0,0.00014238,2]
[382816567,1756737056553,-198.0,0.00014238,2]
[382816568,1756737056563,-151.0,0.00014238,2]
[382816569,1756737056573,-1033.0,0.00014238,2]
[382816570,1756737056582,-151.0,0.00014238,2]
[382816571,1756737056592,-151.0,0.00014238,2]
[382816572,1756737056601,-198.0,0.00014238,2]
[382816573,1756737056610,-205.40797016,0.00014245,2]
[382816574,1756737056619,-480.0,0.00014246,2]
[382816575,1756737056629,-480.0,0.00014246,2]
[382816576,1756737056639,-480.0,0.00014246,2]
[382816577,1756737056648,-480.0,0.00014246,2]
[382816578,1756737056658,-480.0,0.00014246,2]
[382816579,1756737056667,-713.78,0.00014246,2]
[382816580,1756737056677,-480.0,0.00014246,2]
[382816581,1756737056687,-480.0,0.00014246,2]
[382816582,1756737056695,-558.9,0.00014246,2]
[382816583,1756737056704,-731.33,0.00014246,2]
[382816584,1756737056713,-480.0,0.00014246,2]
[382816585,1756737056723,-480.0,0.00014246,2]
[382816586,1756737056732,-480.0,0.00014246,2]
[382816587,1756737056741,-480.0,0.00014246,2]
[382816588,1756737056751,-480.0,0.00014246,2]
[382816589,1756737056761,-480.0,0.00014246,2]
[382816590,1756737056771,-480.0,0.00014246,2]
[382816591,1756737056780,-480.0,0.00014246,2]
[382816592,1756737056790,-621.79679271,0.00014246,2]
[382816593,1756737056800,-480.0,0.00014246,2]
[382816594,1756737056809,-480.0,0.00014246,2]
[382816595,1756737056823,-480.0,0.00014246,2]
[382816596,1756737056832,-591.92,0.00014246,2]
[382816597,1756737056841,-480.0,0.00014246,2]
[382816598,1756737056850,-480.0,0.00014246,2]
[382816599,1756737056861,-480.0,0.00014246,2]
[382816600,1756737056871,-587.04,0.00014246,2]
[382816601,1756737056880,-480.0,0.00014246,2]
[382816602,1756737056891,-480.0,0.00014246,2]
[382816603,1756737056898,-577.26,0.00014246,2]
[382816604,1756737056907,-488.76753745,0.00014246,2]
[382816605,1756737056915,-480.0,0.00014246,2]
[382816606,1756737056924,-480.0,0.00014246,2]
[382816607,1756737056932,-583.33,0.00014246,2]
[382816608,1756737056940,-480.0,0.00014246,2]
[382816609,1756737056947,-480.0,0.00014246,2]
[382816610,1756737056955,-490.29,0.00014246,2]
[382816611,1756737056964,-555.42,0.00014246,2]
[382816612,1756737056974,-480.0,0.00014246,2]
[382816613,1756737056984,-480.0,0.00014246,2]
[382816614,1756737056992,-252.9670053,0.00014246,2]
[382816615,1756737057001,-480.0,0.00014246,2]
[382816616,1756737057011,-480.0,0.00014246,2]
[382816617,1756737057020,-480.0,0.00014246,2]
[382816618,1756737057029,-191.55140175,0.00014246,2]
[382816619,1756737057039,-821.45,0.00014246,2]
[382816620,1756737057047,-480.0,0.00014246,2]
[382816621,1756737057057,-480.0,0.00014246,2]
[382816622,1756737057066,-552.67,0.00014246,2]
[382816623,1756737057075,-480.0,0.00014246,2]
[382816624,1756737057084,-480.0,0.00014246,2]
[382816625,1756737057093,-480.0,0.00014246,2]
[382816626,1756737057102,-270.4307507,0.00014246,2]
[382816627,1756737057111,-480.0,0.00014246,2]
[382816628,1756737057120,-480.0,0.00014246,2]
[382816629,1756737057129,-480.0,0.00014246,2]
[382816630,1756737057139,-480.0,0.00014246,2]
[382816631,1756737057149,-441.52137622,0.00014246,2]
[382816632,1756737057158,-480.0,0.00014246,2]
[382816633,1756737057167,-774.88,0.00014246,2]
[382816634,1756737057177,-492.11,0.00014246,2]
[382816635,1756737057186,-480.0,0.00014246,2]
[382816636,1756737057196,-1194.46,0.00014246,2]
[382816637,1756737057205,-480.0,0.00014246,2]
[382816638,1756737057214,-480.0,0.00014246,2]
[382816639,1756737057223,-570.56761432,0.00014246,2]
[382816640,1756737057232,-480.0,0.00014246,2]
[382816641,1756737057241,-1080.6,0.00014246,2]
[382816642,1756737057251,-480.0,0.00014246,2]
[382816643,1756737057260,-951.19,0.00014246,2]
[382816644,1756737057270,-480.0,0.00014246,2]
[382816645,1756737057280,-480.0,0.00014246,2]
[382816646,1756737057289,-425.73483491,0.00014246,2]
[382816647,1756737057299,-480.0,0.00014246,2]
[382816648,1756737057308,-734.37,0.00014246,2]
[382816649,1756737057318,-480.0,0.00014246,2]
[382816650,1756737057327,-717.39,0.00014246,2]
[382816651,1756737057337,-480.0,0.00014246,2]
[382816652,1756737057346,-692.24,0.00014246,2]
[382816653,1756737057355,-480.0,0.00014246,2]
[382816654,1756737057365,-480.0,0.00014246,2]
[382816655,1756737057375,-480.0,0.00014246,2]
[382816656,1756737057384,-480.0,0.00014246,2]
[382816657,1756737057395,-552.53590651,0.00014246,2]
[382816658,1756737057405,-480.0,0.00014246,2]
[382816659,1756737057415,-480.0,0.00014246,2]
[382816660,1756737057424,-480.0,0.00014246,2]
[382816661,1756737057434,-681.22,0.00014246,2]
[382816662,1756737057443,-480.0,0.00014246,2]
[382816663,1756737057452,-727.48,0.00014246,2]
[382816664,1756737057462,-480.0,0.00014246,2]
[382816665,1756737057471,-480.0,0.00014246,2]
[382816666,1756737057480,-862.52,0.00014246,2]
[382816667,1756737057490,-594.63,0.00014246,2]
[382816668,1756737057499,-480.0,0.00014246,2]
[382816669,1756737057508,-480.0,0.00014246,2]
[382816670,1756737057517,-669.84,0.00014246,2]
[382816671,1756737057526,-480.0,0.00014246,2]
[382816672,1756737057535,-746.38,0.00014246,2]
[382816673,1756737057544,-480.0,0.00014246,2]
[382816674,1756737057553,-480.0,0.00014246,2]
[382816675,1756737057562,-830.25,0.00014246,2]
[382816676,1756737057570,-480.0,0.00014246,2]
[382816677,1756737057579,-480.0,0.00014246,2]
[382816678,1756737057589,-294.65739973,0.00014246,2]
[382816679,1756737057601,-541.34,0.00014246,2]
[382816680,1756737057611,-480.0,0.00014246,2]
[382816681,1756737057621,-719.03,0.00014246,2]
[382816682,1756737057634,-480.0,0.00014246,2]
[382816683,1756737057646,-480.0,0.00014246,2]
[382816684,1756737057655,-581.71800474,0.00014246,2]
[382816685,1756737057665,-480.0,0.00014246,2]
[382816686,1756737057674,-480.0,0.00014246,2]
[382816687,1756737057684,-480.0,0.00014246,2]
[382816688,1756737057693,-480.0,0.00014246,2]
[382816689,1756737057703,-480.0,0.00014246,2]
[382816690,1756737057713,-497.53,0.00014246,2]
[382816691,1756737057722,-1019.05,0.00014246,2]
[382816692,1756737057732,-751.48,0.00014246,2]
[382816693,1756737057741,-480.0,0.00014246,2]
[382816694,1756737057750,-480.0,0.00014246,2]
[382816695,1756737057759,-480.0,0.00014246,2]
[382816696,1756737057768,-687.24,0.00014246,2]
[382816697,1756737057777,-480.0,0.00014246,2]
[382816698,1756737057786,-480.0,0.00014246,2]
[382816699,1756737057795,-480.0,0.00014246,2]
[382816700,1756737057804,-563.19,0.00014246,2]
[382816701,1756737057813,-480.0,0.00014246,2]
[382816702,1756737057828,-480.0,0.00014246,2]
[382816703,1756737057837,-866.23,0.00014246,2]
[382816704,1756737057846,-480.0,0.00014246,2]
[382816705,1756737057855,-538.34,0.00014246,2]
[382816706,1756737057866,-740.49,0.00014246,2]
[382816707,1756737057875,-588.44,0.00014246,2]
[382816708,1756737057883,-592.41,0.00014246,2]
[382816709,1756737057896,-480.0,0.00014246,2]
[382816710,1756737057904,-1075.67,0.00014246,2]
[382816711,1756737057913,-480.0,0.00014246,2]
[382816712,1756737057923,-480.0,0.00014246,2]
[382816713,1756737057932,-621.47,0.00014246,2]
[382816714,1756737057941,-480.0,0.00014246,2]
[382816715,1756737057950,-498.21,0.00014246,2]
[382816716,1756737057959,-480.0,0.00014246,2]
[382816717,1756737057968,-480.0,0.00014246,2]
[382816718,1756737057977,-687.72,0.00014246,2]
[382816719,1756737057988,-2970.36,0.00014246,2]
[382816720,1756737057997,-1011.54,0.00014246,2]
[382816721,1756737058006,-917.93,0.00014246,2]
[382816722,1756737058016,-547.01359717,0.00014246,2]
[382816723,1756737058025,-677.19,0.00014246,2]
[382816724,1756737058034,-480.0,0.00014246,2]
[382816725,1756737058043,-599.34,0.00014246,2]
[382816726,1756737058052,-550.42728498,0.00014246,2]
[382816727,1756737058061,-480.0,0.00014246,2]
[382816728,1756737058070,-480.0,0.00014246,2]
[382816729,1756737058079,-838.15,0.00014246,2]
[382816730,1756737058088,-480.0,0.00014246,2]
[382816731,1756737058098,-1101.05,0.00014246,2]
[382816732,1756737058107,-480.0,0.00014246,2]
[382816733,1756737058116,-480.0,0.00014246,2]
[382816734,1756737058125,-864.51,0.00014246,2]
[382816735,1756737058134,-480.0,0.00014246,2]
[382816736,1756737058144,-660.68,0.00014246,2]
[382816737,1756737058153,-480.0,0.00014246,2]
[382816738,1756737058163,-480.0,0.00014246,2]
[382816739,1756737058173,-2853.6,0.00014246,2]
[382816740,1756737058182,-3659.61,0.00014246,2]
[382816741,1756737058192,-519.43,0.00014246,2]
[382816742,1756737058202,-480.0,0.00014246,2]
[382816743,1756737058211,-480.0,0.00014246,2]
[382816744,1756737058221,-841.62,0.00014246,2]
[382816745,1756737058231,-926.52,0.00014246,2]
[382816746,1756737058241,-480.0,0.00014246,2]
[382816747,1756737058251,-850.62,0.00014246,2]
[382816748,1756737058261,-495.38,0.00014246,2]
[382816749,1756737058270,-876.18,0.00014246,2]
[382816750,1756737058280,-480.0,0.00014246,2]
[382816751,1756737058290,-480.0,0.00014246,2]
[382816752,1756737058299,-1045.1,0.00014246,2]
[382816753,1756737058310,-1236.07,0.00014246,2]
[382816754,1756737058319,-1228.27,0.00014246,2]
[382816755,1756737058329,-556.23,0.00014246,2]
[382816756,1756737058339,-444.71851178,0.00014246,2]
[382816757,1756737058348,-480.0,0.00014246,2]
[382816758,1756737058358,-541.91,0.00014246,2]
[382816759,1756737058368,-480.0,0.00014246,2]
[382816760,1756737058378,-2375.52,0.00014246,2]
[382816761,1756737058387,-2491.73,0.00014246,2]
[382816762,1756737058397,-697.64,0.00014246,2]
[382816763,1756737058416,-480.0,0.00014246,2]
[382816764,1756737058426,-480.0,0.00014246,2]
[382816765,1756737058436,-480.0,0.00014246,2]
[382816766,1756737058446,-480.0,0.00014246,2]
[382816767,1756737058456,-766.33,0.00014246,2]
[382816768,1756737058467,-480.0,0.00014246,2]
[382816769,1756737058477,-480.0,0.00014246,2]
[382816770,1756737058487,-552.75,0.00014246,2]
[382816771,1756737058499,-828.26,0.00014246,2]
[382816772,1756737058508,-1179.07,0.00014246,2]
[382816773,1756737058518,-493.20007838,0.00014246,2]
[382816774,1756737058528,-2571.03,0.00014246,2]
[382816775,1756737058538,-480.0,0.00014246,2]
[382816776,1756737058547,-480.0,0.00014246,2]
[382816777,1756737058557,-480.0,0.00014246,2]
[382816778,1756737058567,-480.0,0.00014246,2]
[382816779,1756737058578,-480.0,0.00014246,2]
[382816780,1756737058587,-480.0,0.00014246,2]
[382816781,1756737058597,-480.0,0.00014246,2]
[382816782,1756737058607,-480.0,0.00014246,2]
[382816783,1756737058616,-480.0,0.00014246,2]
[382816784,1756737058625,-480.0,0.00014246,2]
[382816785,1756737058635,-480.0,0.00014246,2]
[382816786,1756737058646,-7290.22,0.00014246,2]
[382816787,1756737058655,-480.0,0.00014246,2]
[382816788,1756737058665,-480.0,0.00014246,2]
[382816789,1756737058675,-556.84,0.00014246,2]
[382816790,1756737058684,-480.0,0.00014246,2]
[382816791,1756737058694,-960.63,0.00014246,2]
[382816792,1756737058703,-352.57267807,0.00014246,2]
[382816793,1756737058712,-1071.3,0.00014246,2]
[382816794,1756737058722,-504.42,0.00014246,2]
[382816795,1756737058732,-480.0,0.00014246,2]
[382816796,1756737058741,-6015.79,0.00014246,2]
[382816797,1756737058751,-480.0,0.00014246,2]
[382816798,1756737058761,-480.0,0.00014246,2]
[382816799,1756737058771,-772.67,0.00014246,2]
[382816800,1756737058781,-917.75,0.00014246,2]
[382816801,1756737058791,-480.0,0.00014246,2]
[382816802,1756737058800,-480.0,0.00014246,2]
[382816803,1756737058811,-1174.1,0.00014246,2]
[382816804,1756737058822,-480.0,0.00014246,2]
[382816805,1756737058832,-480.0,0.00014246,2]
[382816806,1756737058841,-649.18,0.00014246,2]
[382816807,1756737058851,-480.0,0.00014246,2]
[382816808,1756737058861,-683.17,0.00014246,2]
[382816809,1756737058872,-480.0,0.00014246,2]
[382816810,1756737058882,-2094.04,0.00014246,2]
[382816811,1756737058893,-480.0,0.00014246,2]
[382816812,1756737058903,-813.18,0.00014246,2]
[382816813,1756737058913,-480.0,0.00014246,2]
[382816814,1756737058923,-482.62361852,0.00014246,2]
[382816815,1756737058933,-480.0,0.00014246,2]
[382816816,1756737058943,-1809.97,0.00014246,2]
[382816817,1756737058952,-1346.37,0.00014246,2]
[382816818,1756737058962,-480.0,0.00014246,2]
[382816819,1756737058971,-698.16,0.00014246,2]
[382816820,1756737058981,-480.0,0.00014246,2]
[382816821,1756737058991,-602.04,0.00014246,2]
[382816822,1756737059000,-2196.01,0.00014246,2]
[382816823,1756737059010,-480.0,0.00014246,2]
[382816824,1756737059020,-2537.89,0.00014246,2]
[382816825,1756737059030,-480.0,0.00014246,2]
[382816826,1756737059039,-480.0,0.00014246,2]
[382816827,1756737059048,-805.73,0.00014246,2]
[382816828,1756737059058,-855.3,0.00014246,2]
[382816829,1756737059067,-480.0,0.00014246,2]
[382816830,1756737059076,-2033.27,0.00014246,2]
[382816831,1756737059086,-480.0,0.00014246,2]
[382816832,1756737059096,-480.0,0.00014246,2]
[382816833,1756737059106,-480.0,0.00014246,2]
[382816834,1756737059116,-5304.17,0.00014246,2]
[382816835,1756737059126,-480.0,0.00014246,2]
[382816836,1756737059136,-521.85,0.00014246,2]
[382816837,1756737059147,-480.0,0.00014246,2]
[382816838,1756737059156,-480.0,0.00014246,2]
[382816839,1756737059166,-480.0,0.00014246,2]
[382816840,1756737059175,-480.0,0.00014246,2]
[382816841,1756737059184,-480.0,0.00014246,2]
[382816842,1756737059194,-480.0,0.00014246,2]
[382816843,1756737059203,-585.79,0.00014246,2]
[382816844,1756737059212,-480.0,0.00014246,2]
[382816845,1756737059221,-721.19,0.00014246,2]
[382816846,1756737059230,-712.31,0.00014246,2]
[382816847,1756737059240,-370.89738604,0.00014246,2]
[382816848,1756737059250,-981.38,0.00014246,2]
[382816849,1756737059260,-480.0,0.00014246,2]
[382816850,1756737059270,-480.0,0.00014246,2]
[382816851,1756737059280,-480.0,0.00014246,2]
[382816852,1756737059290,-353.72008522,0.00014246,2]
[382816853,1756737059300,-1040.3090747,0.00014247,2]
[382816854,1756737059310,-2004.90913047,0.0001425,2]
[382816855,1756737059319,-500.0,0.00014258,2]
[382816856,1756737059329,-168.0,0.00014269,2]
[382816857,1756737059339,-500.0,0.00014273,2]
[382816858,1756737059348,-151.0,0.000143,2]
[382816859,1756737059358,-151.0,0.000143,2]
[382816860,1756737059368,-168.0,0.00014335,2]
[382816861,1756737059378,-168.0,0.00014339,2]
[382816862,1756737059387,-447.5705717,0.00014357,2]
[382816863,1756737059398,-151.0,0.000144,2]
[382816864,1756737059408,-151.0,0.000144,2]
[382816865,1756737059418,-151.0,0.000144,2]
[382816866,1756737059428,-151.0,0.000144,2]